Cogmind - Beta 11 X9 @@@ ROGUE MODE // 2022.01.09 @ 13:05:43 Player: JackNine Result: Destroyed by S-43 Plague with Heavy Machine Gun Performance ------------- Evolutions (7) 3500 Regions Visited (26) 5200 Robots Destroyed (459) 2295 Value Destroyed (22301) 22301 Prototype IDs (83) 1660 Alien Tech Used (0) 0 Bonus (11875) 11875 TOTAL SCORE: 46831 Bonus ------- High Alert Combat Kills 5507 Follower Combat Kills 1635 Network Hubs Disabled 600 Met Imprinter 300 Destroyed Z-Imprinter 1000 Triggered Deep Caves Wall 500 Exposed GOLEM Chamber 500 Met Warlord at Base 500 MAIN.C Attacked Warlord 500 Warlord Defense Kill 868 Built Enhanced Grunts 300 A7 Reached Mainframe 300 Friendly Fire -635 Cogmind --------- Core Integrity 0/1300 Matter 300/300 Energy 75/100 System Corruption 28% Temperature Cool (0) Movement Core (50) Location -3/Research Parts ------- > --- POWER (3) -------- (None) > --- PROPULSION (4) --- (None) > --- UTILITY (11) ----- Spectral Analyzer Experimental Signal Interpreter Improved Targeting Computer > --- WEAPON (3) ------- CR-A16's Behemoth Slayer > --- INVENTORY (5) ---- Gamma Rifle EMDS Enhanced Gauss Cannon Peak State ------------ > --- POWER ------------ Light Antimatter Reactor Assembled Flux Generator > --- PROPULSION ------- Enhanced Armored Medium Treads Armored Heavy Treads High-density Centrium Wheel > --- UTILITY ---------- Assembled Nanovents High-capacity Storage Unit Assembled Biocell Array Triangulator Spectral Analyzer Experimental Targeting Computer Experimental Core Analyzer Improved Transmission Jammer EM Dispersion Field GOLEM Unit > --- WEAPON ----------- Assembled Focal Cannon Assembled Focal Cannon CR-A16's Behemoth Slayer > --- INVENTORY -------- Vortex Chain Reactor Enhanced Armored Medium Treads Enhanced Armored Medium Treads Enhanced Armored Medium Treads Improved Heavy Siege Treads Improved Fusion Compressor Zionite Biocell Improved Matter Compressor Improved System Restoration Module EMDS Heavy Flak Cannon Enhanced Gauss Cannon Mini Smartbomb Launcher Micro-nuke Launcher Micro-nuke Launcher Shock Maul [Rating: 177] Favorites ----------- Power Assembled Flux Generator Engine Cooled Deuterium Engine Power Core Micro Nuclear Core Reactor Assembled Flux Generator Propulsion Assembled Alloy Leg Treads Enhanced Armored Medium Treads Leg Assembled Alloy Leg Wheel Armored Wheel Flight Unit Impulse Thruster Utility High-capacity Storage Unit Device GOLEM Unit Storage High-capacity Storage Unit Processor Experimental Targeting Computer Hackware Authchip [Processor] Protection Improved Light Armor Plating Weapon Assembled Focal Cannon Energy Gun Medium Laser Energy Cannon Assembled Focal Cannon Ballistic Gun Enhanced Autogun Ballistic Cannon Hypervelocity Gauss Cannon Launcher Precision Grenade Launcher Impact Weapon Power Maul Slashing Weapon Scythe Piercing Weapon CR-A16's Behemoth Slayer Build | -11 -10 -10 -10 -9 -8 -8 -7 -7 -7 -7 -7 -6 -6 -6 -6 -6 -6 -5 -5 -5 -5 -4 -4 -4 -4 -3 ------- Run | Scr Mat Min Exi Min Mat Sto Fac Low Low Zio Dee Pro Fac Ext Cet Arc Hub Fac Upp Upp War Pro Fac Was Fac Res Slots Evolved 14 | . . . . . 4 . 2 . . . . . 2 . . . . 2 . . . . 2 . . 2 Power 2 | . . . . . . . . . . . . . 1 . . . . . . . . . . . . 1 Propulsion 2 | . . . . . 1 . . . . . . . . . . . . 1 . . . . . . . . Utility 9 | . . . . . 2 . 2 . . . . . 1 . . . . 1 . . . . 2 . . 1 Weapon 1 | . . . . . 1 . . . . . . . . . . . . . . . . . . . . . Parts Attached 423 | 6 7 . . . 54 27 38 3 . 10 38 14 13 1 9 3 18 22 1 4 13 2 38 3 31 68 Power 28 | 1 1 . . . 5 1 4 . . 1 2 . . . . . 1 1 . . . . 3 1 1 6 Engine 13 | 1 1 . . . 4 1 4 . . 1 1 . . . . . . . . . . . . . . . Core 1 | . . . . . 1 . . . . . . . . . . . . . . . . . . . . . Reactor 14 | . . . . . . . . . . . 1 . . . . . 1 1 . . . . 3 1 1 6 Propulsion 76 | 2 2 . . . 14 7 2 1 . . 4 3 3 1 3 . 2 2 . 1 2 . 8 1 3 15 Treads 52 | 1 1 . . . 11 6 2 . . . 1 1 . . 3 . 2 . . . . . 8 1 3 12 Leg 10 | . . . . . . . . . . . . 1 3 1 . . . 2 . 1 2 . . . . . Wheel 12 | 1 1 . . . 2 1 . 1 . . 3 1 . . . . . . . . . . . . . 2 Hover . | . . . . . . . . . . . . . . . . . . . . . . . . . . . Flight 2 | . . . . . 1 . . . . . . . . . . . . . . . . . . . . 1 Utility 186 | 1 4 . . . 15 9 12 . . 5 15 3 6 . 4 3 13 9 1 3 6 . 22 1 25 29 Device 106 | . 3 . . . 7 1 9 . . 3 3 . 1 . . 2 10 4 1 2 4 . 12 1 22 21 Storage 12 | 1 1 . . . 1 . . . . 1 2 1 1 . 1 . . . . . . . 2 . 1 . Processor 12 | . . . . . 2 . 1 . . . . . . . . . . 1 . . 1 . 3 . 1 3 Hackware 4 | . . . . . . 4 . . . . . . . . . . . . . . . . . . . . Protection 52 | . . . . . 5 4 2 . . 1 10 2 4 . 3 1 3 4 . 1 1 . 5 . 1 5 Artifact . | . . . . . . . . . . . . . . . . . . . . . . . . . . . Weapon 133 | 2 . . . . 20 10 20 2 . 4 17 8 4 . 2 . 2 10 . . 5 2 5 . 2 18 Energy Gun 51 | 2 . . . . 9 5 12 . . . 12 3 2 . . . . 3 . . 2 . 1 . . . Energy Cannon 4 | . . . . . . . . . . . 1 . . . . . . . . . . . 1 . . 2 Ballistic Gun 18 | . . . . . 4 4 4 1 . 3 1 . . . . . 1 . . . . . . . . . Ballistic Cannon 18 | . . . . . 4 . 1 . . . . 2 . . . . . 3 . . 2 1 1 . . 4 Launcher 25 | . . . . . 3 1 1 1 . . 2 3 . . 2 . 1 3 . . 1 1 . . 1 5 Special Weapon . | . . . . . . . . . . . . . . . . . . . . . . . . . . . Impact Weapon 7 | . . . . . . . 1 . . 1 1 . 2 . . . . 1 . . . . . . . 1 Slashing Weapon 1 | . . . . . . . 1 . . . . . . . . . . . . . . . . . . . Piercing Weapon 9 | . . . . . . . . . . . . . . . . . . . . . . . 2 . 1 6 Special Melee Weapon . | . . . . . . . . . . . . . . . . . . . . . . . . . . . Unidentified Prototypes 48 | . . . . . 3 4 4 . . . 10 . . . 2 . 3 . . . 7 . 8 . 1 6 Corrupted Parts 3 | . . . . . . . . . . . . . . . 2 . . . . . . . 1 . . . System Corruption 25 | . . . . . . . . . . . . . . . 16 . . . . . . . 9 . . . Parts Lost 93 | . . . . . 7 4 4 . . . 4 6 6 . . . 6 12 . 1 1 . 13 . 3 26 Power 10 | . . . . . 2 1 . . . . . . . . . . 1 1 . . . . 1 . 1 3 Propulsion 18 | . . . . . 1 . 1 . . . 1 3 . . . . 1 2 . . . . 1 . . 8 Utility 44 | . . . . . 2 3 2 . . . 3 3 3 . . . 2 4 . 1 1 . 7 . 2 11 Weapon 21 | . . . . . 2 . 1 . . . . . 3 . . . 2 5 . . . . 4 . . 4 Highest Loss Streak 8 | . . . . . 2 3 3 . . . 1 4 4 . . . 4 6 . 1 1 . 4 . 1 8 Average Slot Usage (%) 88 | . 98 100 100 100 97 98 99 100 100 96 93 97 85 80 77 79 79 79 87 88 87 88 83 88 87 73 Engine 2 | . 14 14 14 14 8 . 7 7 7 6 5 7 . . . . . . . . . . . . . . Reactor 3 | . . . . . . . . . . . 1 . 6 6 6 6 6 4 5 5 5 5 5 9 8 6 Treads 8 | . 14 14 14 14 17 18 15 15 15 15 14 13 1 . 4 6 5 3 . . . . 6 15 15 9 Leg 7 | . . . . . . . . . . . . . 15 20 7 6 6 12 23 23 23 23 9 . . . Wheel 3 | . 14 14 14 14 9 8 7 7 7 7 7 6 3 . . . . . . . . . . . . 2 Device 13 | . 13 14 14 14 14 9 22 23 23 21 10 15 13 6 6 9 10 10 11 11 10 11 15 15 14 12 Storage 10 | . 14 14 14 14 9 9 7 7 7 6 7 7 12 13 13 13 13 11 11 11 11 11 9 10 10 8 Processor 8 | . . . . . 2 7 7 7 7 7 7 7 6 6 6 6 6 11 11 11 11 11 15 15 15 15 Protection 6 | . . . . . 9 9 7 7 7 6 13 12 6 6 11 9 8 5 5 5 5 5 4 5 5 2 Energy Gun 5 | . 28 28 28 28 12 23 16 . . . 14 15 2 . . . . . . . . . . . . . Energy Cannon 8 | . . . . . . . . . . . 1 . 12 20 17 20 17 10 10 11 11 11 12 15 14 8 Ballistic Gun 2 | . . . . . 3 3 4 22 23 15 2 . . . . . 1 . . . . . . . . . Ballistic Cannon 1 | . . . . . 11 . . . . . . 1 . . . . . 1 5 5 4 4 1 . . . Naked Turns . | . . . . . . . . . . . . . . . . . . . . . . . . . . . Heaviest Build 151 | 14 50 50 50 50 65 67 74 71 71 71 80 74 147 147 147 141 141 136 130 130 135 135 145 134 141 151 Greatest Support 145 | 20 20 12 12 12 45 12 12 12 12 12 12 12 80 80 80 80 100 95 95 100 120 120 145 145 145 145 Greatest Overweight (x) 10 | . 4 4 4 4 5 5 6 5 5 5 6 6 10 1 2 1 4 4 1 1 1 1 2 . 1 7 Average Overweight (x) 3 | . 3 4 4 4 3 4 5 5 5 4 5 5 4 1 1 1 1 1 1 1 1 1 1 . . 3 Largest Inventory Capacity 20 | 8 20 20 20 20 20 20 20 20 20 20 20 20 20 20 20 20 20 20 20 20 20 20 20 20 20 20 Average Capacity 19 | 7 18 20 20 20 20 20 20 20 20 19 20 20 20 20 20 20 20 20 20 20 20 20 19 20 20 19 Most Carried 20 | 4 20 20 20 20 20 20 20 20 20 20 20 20 20 20 20 20 20 20 20 20 20 19 20 20 20 20 Average Carried 18 | 2 11 19 20 20 18 19 19 19 20 18 19 19 19 19 19 20 19 17 19 19 19 19 18 19 19 17 Final Capacity 20 | 8 20 20 20 20 20 20 20 20 20 20 20 20 20 20 20 20 20 20 20 20 20 20 20 20 20 5 Final Carried 20 | 4 19 20 20 20 20 20 20 20 20 20 20 17 20 20 20 20 17 20 20 20 19 19 20 20 20 4 Class Distribution -------------------- 25% | Golem 23% | Mutant 21% | Gunner 7% | Tank 6% | Generator-Mutant 3% | Commander-Tank 3% | Commander-Gunner Dominant Class ---------------- Mutant | -10/Materials Mutant | -10/Mines Mutant | -10/Exiles Mutant | -9/Mines Tank | -8/Materials Gunner | -8/Storage Gunner | -7/Factory Gunner | -7/Lower Caves Gunner | -7/Lower Caves Mutant | -7/Zion Mutant | -7/Deep Caves Mutant | -6/Proximity Caves Golem | -6/Factory Commander-Gunner | -6/Extension Golem | -6/Cetus Commander-Golem | -6/Archives Golem | -6/Hub_04(d) Scavenger-Golem | -5/Factory Golem | -5/Upper Caves Golem | -5/Upper Caves Golem | -5/Warlord Golem | -4/Proximity Caves Gunner | -4/Factory Gunner | -4/Waste Gunner | -4/Factory Generator-Mutant | -3/Research Resources | -11 -10 -10 -10 -9 -8 -8 -7 -7 -7 -7 -7 -6 -6 -6 -6 -6 -6 -5 -5 -5 -5 -4 -4 -4 -4 -3 ----------- Run | Scr Mat Min Exi Min Mat Sto Fac Low Low Zio Dee Pro Fac Ext Cet Arc Hub Fac Upp Upp War Pro Fac Was Fac Res Matter Collected 7962 | 220 110 . . . 1283 304 459 165 18 27 767 237 138 119 146 87 615 573 215 58 120 41 567 30 397 1266 Remotely . | . . . . . . . . . . . . . . . . . . . . . . . . . . . Salvage Created 24639 | . 519 108 . . 1577 1672 759 137 50 . 1235 606 1133 1227 531 369 2207 2142 456 194 349 40 3465 316 1621 3926 Parts 1053 | . 41 4 . . 73 77 30 8 3 . 40 23 79 44 20 14 113 82 13 9 8 5 121 2 88 156 Haulers Intercepted 8 | . . . . . 2 1 1 . . . . . . . . . . 1 . . . . 1 . 1 1 Recyclers Shooed 8 | . . . . . . 1 . . . . . . . . . . . 3 . . . . 2 . 1 1 Parts Field Recycled . | . . . . . . . . . . . . . . . . . . . . . . . . . . . Retrieved Matter . | . . . . . . . . . . . . . . . . . . . . . . . . . . . Parts Self-Destructed 121 | . . . . . . . . 7 3 . . 13 . . . . . . 13 9 72 4 . . . . Prevented 29 | . . . . . . . . . 1 . . 8 . . . . . . . . 20 . . . . . Kills | -11 -10 -10 -10 -9 -8 -8 -7 -7 -7 -7 -7 -6 -6 -6 -6 -6 -6 -5 -5 -5 -5 -4 -4 -4 -4 -3 ------- Run | Scr Mat Min Exi Min Mat Sto Fac Low Low Zio Dee Pro Fac Ext Cet Arc Hub Fac Upp Upp War Pro Fac Was Fac Res Combat Hostiles Destroyed 428 | . 15 . . . 36 28 16 5 2 . 52 15 21 16 7 1 36 38 5 3 6 4 39 1 28 54 Melee 10 | . . . . . . . . . . . 5 . . . . . . . . . . . . . . 5 Guns 97 | . 15 . . . 16 27 13 2 2 . 9 4 3 . . . 5 1 . . . . . . . . Cannons 221 | . . . . . 15 . . . . . . 2 18 16 4 1 27 27 5 3 6 . 38 1 23 35 AOE 86 | . . . . . 3 . 3 3 . . 36 7 . . . . 4 10 . . . 4 . . 4 12 Classes Destroyed 28 | . 3 2 . . 9 1 1 1 . . 5 . 2 . . . 2 . . . 1 . . 1 . . Worker 12 | . . . . . 1 1 2 . . . . . 1 . . . 3 . . . . . 1 . 1 2 Builder 4 | . . . . . . . . . . . . . . . . . 3 . . . . . . . . 1 Tunneler 3 | . . 1 . . 1 . . . . . . . . . . . . . . . . . . . . 1 Hauler 8 | . . . . . 2 1 1 . . . . . . . . . . 1 . . . . 1 . 1 1 Recycler 15 | . . 1 . . 1 2 . . . . . . 1 1 . . . 2 . . . . 4 . . 3 Mechanic 3 | . . . . . 1 . . . . . . . . . . . . . . . . . 1 . . 1 Operator 16 | . . . . . 1 3 . . . . . . . 1 . 9 1 . . . . . . . . 1 Watcher 11 | . 3 . . . 1 1 1 . . . . . . 1 1 . 1 1 . . . . . . . 1 Swarmer 61 | . 5 . . . 3 3 8 4 2 . . 6 7 3 . . . 7 . . . 4 . . 6 3 Cutter 3 | . . . . . 3 . . . . . . . . . . . . . . . . . . . . . Saboteur 2 | . . . . . . . . . . . . . . . . . 1 . . . . . . . . 1 Grunt 151 | . 10 . . . 20 10 3 . . . . 5 3 5 3 . 19 16 3 . 2 . 21 . 3 28 Brawler 11 | . . . . . 2 2 . . . . . . . . 1 . . . 1 . 1 . . . . 4 Duelist 11 | . . . . . 1 1 . . . . . 3 1 1 . . . . . . 1 . 2 . . 1 Protector 9 | . . . . . . 1 . . . . . . . . . . 4 4 . . . . . . . . Sentry 40 | . . . . . 5 10 4 . . . . 1 . 5 . 1 4 3 1 1 . . 2 . 3 . Specialist 7 | . . . . . . . . . . . . . 4 . . . . . . . . . 1 . . 2 Hunter 21 | . . . . . 2 1 . . . . . . . . . . . 4 . 2 . . 6 . 4 2 Programmer 41 | . . . . . . . 1 . . . . . 5 . . . 3 4 . . 1 . 6 . 10 11 Heavy 2 | . . . . . . . . . . . . . 1 . . . . . . . . . . . . 1 Behemoth 6 | . . . . . . . . 1 . . . . . 2 . . . . . . . . 1 . 1 1 Compactor 1 | . . . . . . . . . . . . . . . . . . . . . . . . 1 . . Cetus Guard 3 | . . . . . . . . . . . . . . . 3 . . . . . . . . . . . Lightning 5 | . . . . . . . . . . . . . . . . . 5 . . . . . . . . . Executioner 1 | . . . . . . . . . . . . . . . . . . . . . 1 . . . . . Z-Light 7 | . . . . . . . . . . . 7 . . . . . . . . . . . . . . . Assembler 2 | . . . . . . . . . . . 2 . . . . . . . . . . . . . . . Assembled 37 | . . . . . . . . . . . 37 . . . . . . . . . . . . . . . Golem 7 | . . . . . . . . . . . 7 . . . . . . . . . . . . . . . Thug 1 | . . . . . . . . . . . . . . . . . . . . . . . . . 1 . Savage 1 | . . . . . . . . . . . . . . 1 . . . . . . . . . . . . Butcher 1 | . . . . . . . . . . . . . . 1 . . . . . . . . . . . . Fireman 1 | . . . . . . . . . . . 1 . . . . . . . . . . . . . . . Best Kill Streak 39 | . 4 1 . . 5 6 4 4 2 . 39 10 6 3 4 2 5 6 3 2 5 4 7 1 5 14 Combat Bots Only 37 | . 4 . . . 4 5 4 4 2 . 37 10 6 3 4 1 5 6 3 2 5 4 7 1 5 11 Max Kills in Single Turn 10 | . 1 1 . . 2 1 3 3 2 . 10 2 2 2 1 1 2 2 2 1 1 2 2 1 2 2 Gunslinging 1 | . . . . . . . . . 1 . . . . . . . . . . . . . . . . . Exploded 10 | . . . . . 2 . 3 3 . . 10 2 . . . . 1 2 . . . 2 . . 2 2 Melee 1 | . . . . . . . . . . . 1 . . . . . . . . . . . . . . 1 Uniques/NPCs Destroyed 1 | . . . . . . . . . . . 1 . . . . . . . . . . . . . . . Z-Imprinter (-7/Deep Caves) Combat | -11 -10 -10 -10 -9 -8 -8 -7 -7 -7 -7 -7 -6 -6 -6 -6 -6 -6 -5 -5 -5 -5 -4 -4 -4 -4 -3 -------- Run | Scr Mat Min Exi Min Mat Sto Fac Low Low Zio Dee Pro Fac Ext Cet Arc Hub Fac Upp Upp War Pro Fac Was Fac Res Damage Taken 31914 | . 415 . . . 2032 953 1100 150 16 . 1419 898 1194 650 451 150 3639 3527 249 624 311 100 4198 . 1593 8245 Core 3355 | . 157 . . . 190 61 137 21 . . 146 80 165 3 46 26 210 186 . 59 . 13 465 . 71 1319 Absorbed by Shields 1245 | . . . . . . . . . . . . . . 110 142 . . . . . . . 602 . 391 . Reduced by Siege Mode 522 | . . . . . . . . . . . . . . . . . 95 153 . . . . 43 . . 231 Core Remaining (%) 58 | 100 . . . 37 . 54 . . . . . 45 . . . . 47 . . . . 74 . . 53 . Volleys Fired 1020 | . 44 3 . 1 89 77 41 10 2 . 45 20 46 37 15 25 144 94 11 9 9 2 106 11 64 115 Largest 3 | . 2 2 . 2 3 3 3 3 3 . 3 3 3 3 3 3 3 3 3 3 3 1 3 3 3 3 Hottest 206 | . 100 100 . 100 191 191 171 75 75 . 206 206 123 75 86 75 83 146 111 111 111 36 111 75 75 131 Shots Fired 2293 | . 88 6 . 2 239 214 105 28 6 . 124 39 99 96 33 62 304 176 30 23 25 2 216 28 135 213 Gun 781 | . 88 6 . 2 139 214 100 27 6 . 107 22 21 . . . 35 14 . . . . . . . . Cannon 1433 | . . . . . 97 . 4 . . . 3 8 78 96 28 62 254 147 30 23 25 . 216 28 132 202 Launcher 79 | . . . . . 3 . 1 1 . . 14 9 . . 5 . 15 15 . . . 2 . . 3 11 Special . | . . . . . . . . . . . . . . . . . . . . . . . . . . . Kinetic 371 | . . . . . 137 19 22 27 6 . 54 8 . . . . 35 21 8 5 8 . 13 . . 8 Thermal 1818 | . 88 6 . 2 96 195 82 . . . 47 22 99 96 28 62 254 135 22 18 17 . 203 28 132 186 Explosive 67 | . . . . . 3 . 1 1 . . 14 2 . . . . 15 15 . . . 2 . . 3 11 Electromagnetic 32 | . . . . . 3 . . . . . 9 7 . . 5 . . . . . . . . . . 8 Phasic 5 | . . . . . . . . . . . . . . . . . . 5 . . . . . . . . Robot Hit Streak 58 | . 15 3 . 4 20 25 25 10 2 . 13 14 41 25 16 12 35 53 28 23 24 . 30 7 29 58 Robot Miss Streak 4 | . 2 1 . 1 4 2 2 1 1 . 4 2 1 2 1 2 2 3 1 . 2 . 4 2 3 3 Penetration Max 2 | . . . . . . . . . . . . . . . . . 1 . . . 1 . 2 . . 1 Secondary Targets 10 | . . . . . . 3 3 . 1 . 2 . . . . . . 1 . . . . . . . . Max Gunslinging Chain 1 | . . . . . . 1 1 . 1 . 1 . . . . . . 1 . . . . . . . . Shots Hit Robots 1594 | . 62 5 . 1 142 145 79 21 3 . 131 28 61 67 22 46 160 135 24 20 13 . 145 18 84 182 Core Hits 966 | . 30 3 . . 69 56 34 11 2 . 146 33 28 29 10 17 98 88 9 5 9 4 93 7 58 127 Critical Kills 8 | . . . . . . . . . . . 1 . . . . . 3 2 1 . . . 1 . . . Critical Parts Destroyed 15 | . . . . . . . . . . . . . . . . . 2 4 3 . 3 . 3 . . . Critical Strikes 60 | . 9 . . . 10 13 2 . . . 2 . . . . . 5 6 4 . 3 . 4 . . 2 Burn 30 | . 9 . . . 7 12 2 . . . . . . . . . . . . . . . . . . . Destroy 24 | . . . . . . 1 . . . . 1 . . . . . 5 6 4 . 3 . 4 . . . Blast 4 | . . . . . 3 . . . . . . . . . . . . . . . . . . . . 1 Smash 1 | . . . . . . . . . . . 1 . . . . . . . . . . . . . . . Puncture 1 | . . . . . . . . . . . . . . . . . . . . . . . . . . 1 Melee Attacks 133 | . . . . . . . 6 . . 16 58 . 13 . . . . 1 . . . . 7 . 3 29 Impact 89 | . . . . . . . . . . 16 58 . 13 . . . . 1 . . . . . . . 1 Slashing 6 | . . . . . . . 6 . . . . . . . . . . . . . . . . . . . Piercing 38 | . . . . . . . . . . . . . . . . . . . . . . . 7 . 3 28 Sneak Attacks 4 | . . . . . . . 3 . . . . . . . . . . . . . . . . . . 1 Combat Hostiles . | . . . . . . . . . . . . . . . . . . . . . . . . . . . Follow-up Attacks . | . . . . . . . . . . . . . . . . . . . . . . . . . . . Damage Inflicted 70443 | . 805 62 . 13 3626 2909 2086 641 63 . 7167 1650 3074 3215 1228 2010 8745 6686 930 768 645 368 7184 814 4386 11368 Guns 10838 | . 805 62 . 13 1762 2909 1562 424 63 . 1656 510 507 . . . 172 393 . . . . . . . . Cannons 44291 | . . . . . 1482 . . . . . 53 235 2522 3200 818 2010 6831 4870 930 768 645 . 7122 814 4136 7855 Explosions 11829 | . . . . . 382 . 215 217 . . 3173 905 . . 410 . 1636 1423 . . . 368 . . 228 2872 Melee 3335 | . . . . . . . 309 . . . 2285 . 45 . . . . . . . . . 61 . . 635 Ramming 150 | . . . . . . . . . . . . . . 15 . . 106 . . . . . 1 . 22 6 Kinetic 4933 | . . . . . 1928 251 193 424 63 . 696 235 . . . . 172 404 78 40 66 . 162 . . 221 Thermal 49678 | . 805 62 . 13 1255 2658 1369 . . . 963 687 3029 3200 818 2010 6831 4698 852 728 579 . 6960 814 4136 7211 Explosive 10233 | . . . . . 382 . 215 217 . . 3091 137 . . . . 1304 1419 . . . 368 . . 228 2872 Electromagnetic 1949 | . . . . . 61 . . . . . 132 591 . . 410 . 332 . . . . . . . . 423 Impact 2330 | . . . . . . . . . . . 2285 . 45 . . . . . . . . . . . . . Slashing 309 | . . . . . . . 309 . . . . . . . . . . . . . . . . . . . Piercing 696 | . . . . . . . . . . . . . . . . . . . . . . . 61 . . 635 Phasic 165 | . . . . . . . . . . . . . . . . . . 165 . . . . . . . . Highest Corruption 29 | . 1 1 1 1 3 9 . . . . . 2 7 7 23 23 29 3 3 3 3 . 14 18 18 28 Average Corruption 5 | . 1 1 1 1 3 3 . . . . . 1 3 7 15 15 12 1 3 3 3 . 4 16 2 7 Corruption Purged 32 | . . . . . . . . . . . . . . . . 13 . . . . . . . . 19 . Effects 383 | . 3 . . 2 15 30 . . . . . . 26 44 17 32 99 11 23 7 2 . 19 11 13 29 Message Errors 77 | . 2 . . 1 5 10 . . . . . . 5 5 3 3 20 2 4 . 1 . 3 3 1 9 Matter Fused 90 | . . . . . 3 6 . . . . . . 9 9 5 6 25 2 7 1 1 . 4 2 2 8 Heat Flow Errors 48 | . . . . . 3 3 . . . . . . 5 8 3 8 8 . 2 2 . . . . 4 2 Energy Discharges 58 | . . . . 1 2 4 . . . . . . 2 6 3 1 18 2 4 1 . . 2 1 4 7 Parts Rejected 5 | . . . . . . . . . . . . . . . 1 . 1 . . . . . 1 1 . 1 Data Loss (minor) 56 | . 1 . . . 1 5 . . . . . . . 9 . 3 12 4 6 3 . . 8 1 2 1 Data Loss (major) 14 | . . . . . . . . . . . . . 3 5 1 3 2 . . . . . . . . . Misfires 9 | . . . . . . 1 . . . . . . . 2 1 1 4 . . . . . . . . . Alerts 3 | . . . . . . . . . . . . . . . . . 2 . . . . . . 1 . . Misdirections 3 | . . . . . . . . . . . . . . . . . 2 . . . . . . . . 1 Weapon Failures 20 | . . . . . 1 1 . . . . . . 2 . . 7 5 1 . . . . 1 2 . . Overload Shots . | . . . . . . . . . . . . . . . . . . . . . . . . . . . Overflow Damage 2855 | . . . . . 82 . 108 . . . 242 40 145 96 3 240 381 197 59 24 22 10 404 . 250 552 Projectiles 2254 | . . . . . 37 . . . . . . 5 145 96 . 240 363 171 59 24 22 . 404 . 250 438 Explosions 381 | . . . . . 45 . . . . . 140 35 . . 3 . 18 26 . . . 10 . . . 104 Melee 220 | . . . . . . . 108 . . . 102 . . . . . . . . . . . . . . 10 Knockbacks 43 | . . . . . 8 . . . . . 7 10 1 . . . 2 12 . 1 . . 2 . . . Impact 10 | . . . . . . . . . . . 7 . 1 . . . 2 . . . . . . . . . Kinetic 30 | . . . . . 8 . . . . . . 8 . . . . . 11 . 1 . . 2 . . . Secondary 3 | . . . . . . . . . . . . 2 . . . . . 1 . . . . . . . . Self-Inflicted Damage 634 | . . . . . 108 . . . . . 45 83 . . . . 266 109 . . . . . . . 23 Shots 18 | . . . . . 2 . . . . . 2 6 . . . . 4 3 . . . . . . . 1 Rammed 18 | . . . . . . . . . . . . . . . . . 12 . . . . . . . 4 2 Targets Rammed 21 | . . . . . . . . . . . . . . 1 . . 13 . . . . . 1 . 4 2 Kicked 3 | . . . . . . . . . . . . . . 1 . . 1 . . . . . 1 . . . Crushed . | . . . . . . . . . . . . . . . . . . . . . . . . . . . Highest Temperature 410 | . 123 9 . 9 263 410 156 . . . 224 100 204 280 222 266 259 312 271 330 200 . 200 . 267 265 Average Temperature 83 | . 34 6 . 6 92 116 37 . . . 84 46 82 83 76 104 53 93 123 151 98 . 70 . 87 59 Received Heat Transfer 6807 | . 186 . . . 783 315 291 24 . . 251 327 108 153 136 18 702 1158 81 21 9 . 621 . 154 1469 Effects 11 | . . . . . 1 4 . . . . . . . 2 . . . 1 . 1 1 . . . 1 . Energy Bleed 5 | . . . . . 1 1 . . . . . . . . . . . 1 . . 1 . . . 1 . Interference 5 | . . . . . . 3 . . . . . . . 2 . . . . . . . . . . . . Short Circuit 1 | . . . . . . . . . . . . . . . . . . . . 1 . . . . . . Siege Activations 16 | . . . . . . . . . . . . . . . . . 5 3 . . . . 3 . . 5 Total Turns 478 | . . . . . . . . . . . . . . . . . 160 124 . . . . 46 . . 148 Longest Duration 76 | . . . . . . . . . . . . . . . . . 54 76 . . . . 24 . . 41 Robots Corrupted 7 | . . . . . . . . . . . 1 2 . . 3 . . . . . . . . . . 1 Combat Hostiles 7 | . . . . . . . . . . . 1 2 . . 3 . . . . . . . . . . 1 Parts Fried 5 | . . . . . . . . . . . . 1 . . 2 . 1 . . . . . . . . 1 Impact Corruptions 6 | . . . . . . . . . . . 6 . . . . . . . . . . . . . . . Robots Melted 3 | . . . . . 2 1 . . . . . . . . . . . . . . . . . . . . Combat Hostiles 3 | . . . . . 2 1 . . . . . . . . . . . . . . . . . . . . Parts Melted 74 | . 4 2 . . 7 17 4 . . . 3 . 3 5 . 3 2 5 . . . . 5 . 7 7 Heat Transferred 38371 | . 2960 185 . 37 2960 5546 2595 . . . 1086 792 1843 1800 437 1150 3502 2678 475 400 300 . 3400 500 2125 3600 Parts Sabotaged 3 | . . . . . . . . . . . . . . . . . . . . . . . . . . 3 Parts Stolen . | . . . . . . . . . . . . . . . . . . . . . . . . . . . Parts Stripped . | . . . . . . . . . . . . . . . . . . . . . . . . . . . Power Chain Reactions 4 | . . . . . . . . . . . 1 1 . . . . 2 . . . . . . . . . Missiles Intercepted . | . . . . . . . . . . . . . . . . . . . . . . . . . . . Alert | -11 -10 -10 -10 -9 -8 -8 -7 -7 -7 -7 -7 -6 -6 -6 -6 -6 -6 -5 -5 -5 -5 -4 -4 -4 -4 -3 ------- Run | Scr Mat Min Exi Min Mat Sto Fac Low Low Zio Dee Pro Fac Ext Cet Arc Hub Fac Upp Upp War Pro Fac Was Fac Res Peak Influence 1845 | . 295 74 . 18 607 841 746 . . . . . 414 489 975 612 1845 1324 . . . . 756 272 709 1476 Initial 903 | . . 64 . . 6 256 326 . . . . . 75 196 273 310 144 903 . . . . . 264 190 372 Average 488 | . 148 66 . 14 263 577 536 . . . . . 153 326 578 485 895 918 . . . . 329 270 391 716 Maximum Alert Level 5 | . 1 . . . 2 3 3 . . . . . 2 2 3 2 5 4 . . . . 3 1 3 4 Low Security (%) 22 | 100 78 100 . 100 40 . . . . . . . 76 5 . . 9 . . . . . 32 . 7 . Level 1 23 | . 21 . . . 44 8 7 . . . . . 13 69 24 6 12 . . . . . 31 100 49 10 Level 2 32 | . . . . . 14 59 83 . . . . . 10 24 50 93 14 6 . . . . 32 . 39 54 Level 3 14 | . . . . . . 31 8 . . . . . . . 25 . 30 79 . . . . 3 . 2 18 Level 4 5 | . . . . . . . . . . . . . . . . . 24 13 . . . . . . . 16 Level 5 1 | . . . . . . . . . . . . . . . . . 8 . . . . . . . . . High Security . | . . . . . . . . . . . . . . . . . . . . . . . . . . . Max Security . | . . . . . . . . . . . . . . . . . . . . . . . . . . . Squads Dispatched 83 | . 5 1 . . 6 3 3 . . . . . 7 3 . . 14 11 . . . . 12 . 4 14 Investigation 14 | . 3 1 . . 3 1 2 . . . . . . 1 . . 1 . . . . . 1 . . 1 Extermination 19 | . . . . . . . 1 . . . . . 4 . . . 3 1 . . . . 3 . 3 4 Reinforcement 27 | . 2 . . . 2 1 . . . . . . 3 2 . . 7 1 . . . . 4 . . 5 Assault 17 | . . . . . 1 1 . . . . . . . . . . 3 6 . . . . 1 . 1 4 Garrison 6 | . . . . . . . . . . . . . . . . . . 3 . . . . 3 . . . Intercept . | . . . . . . . . . . . . . . . . . . . . . . . . . . . Construction Impeded 4 | . . . . . 1 . . . . . . . . . . . 1 . . . . . 1 . . 1 Haulers Reinforced 2 | . . . . . . . . . . . . . . . . . . 1 . . . . 1 . . . Active Scanning Responses . | . . . . . . . . . . . . . . . . . . . . . . . . . . . Cargo Convoy Interrupts 1 | . . . . . . . . . . . . . . . . . . . . . . . 1 . . . Stealth | -11 -10 -10 -10 -9 -8 -8 -7 -7 -7 -7 -7 -6 -6 -6 -6 -6 -6 -5 -5 -5 -5 -4 -4 -4 -4 -3 --------- Run | Scr Mat Min Exi Min Mat Sto Fac Low Low Zio Dee Pro Fac Ext Cet Arc Hub Fac Upp Upp War Pro Fac Was Fac Res Distress Signals 27 | . 2 . . . 3 4 1 . . . . . . 2 1 . 3 1 . . . . 2 . 3 5 Communications Jammed 40 | . . . . . . . . . . . . . . . . . . . . . . . . . 5 35 Distress Signals 40 | . . . . . . . . . . . . . . . . . . . . . . . . . 5 35 Times Spotted 663 | . 27 . . . 47 47 21 5 3 . 53 19 30 33 15 16 80 45 8 5 8 4 47 4 40 106 Peak Tracking Total 37 | . 5 . . . 5 5 4 4 3 . 37 9 7 4 5 2 7 8 3 2 5 4 7 1 6 9 Tactical Retreats 56 | . 1 . . . 6 4 1 . . . 2 3 6 1 1 . 8 1 3 2 1 . 3 . 5 8 Traps | -11 -10 -10 -10 -9 -8 -8 -7 -7 -7 -7 -7 -6 -6 -6 -6 -6 -6 -5 -5 -5 -5 -4 -4 -4 -4 -3 ------- Run | Scr Mat Min Exi Min Mat Sto Fac Low Low Zio Dee Pro Fac Ext Cet Arc Hub Fac Upp Upp War Pro Fac Was Fac Res Traps Triggered 25 | . 2 . . . 2 1 2 . . . . . . 9 . . 1 . . . . . 2 . 3 3 Indirectly 1 | . . . . . . . . . . . . . . . . . 1 . . . . . . . . . Trap Hack Attempts . | . . . . . . . . . . . . . . . . . . . . . . . . . . . Triggered . | . . . . . . . . . . . . . . . . . . . . . . . . . . . Disarmed . | . . . . . . . . . . . . . . . . . . . . . . . . . . . Reprogrammed . | . . . . . . . . . . . . . . . . . . . . . . . . . . . Reused . | . . . . . . . . . . . . . . . . . . . . . . . . . . . Traps Extracted . | . . . . . . . . . . . . . . . . . . . . . . . . . . . Installed . | . . . . . . . . . . . . . . . . . . . . . . . . . . . Triggered 17 | . . . . . . . . . . . . . . . . . . . 1 . 14 . 1 . . 1 Machines | -11 -10 -10 -10 -9 -8 -8 -7 -7 -7 -7 -7 -6 -6 -6 -6 -6 -6 -5 -5 -5 -5 -4 -4 -4 -4 -3 ---------- Run | Scr Mat Min Exi Min Mat Sto Fac Low Low Zio Dee Pro Fac Ext Cet Arc Hub Fac Upp Upp War Pro Fac Was Fac Res Machines Disabled 38 | . . . . . . 4 3 . . . 1 . . 2 2 2 16 5 . . 1 . 1 . 1 . Max in Single Turn 4 | . . . . . . 1 1 . . . 1 . . 1 1 1 4 2 . . 1 . 1 . 1 . Garrison Access 4 | . . . . . . 1 2 . . . . . . . . . 1 . . . . . . . . . Network Hub 3 | . . . . . . . . . . . . . . . . . 3 . . . . . . . . . Energy Cycler 2 | . . . . . . . . . . . . . . 2 . . . . . . . . . . . . Machines Sabotaged . | . . . . . . . . . . . . . . . . . . . . . . . . . . . Garrisons Compromised 1 | . . . . . . . . . . . . . . . . . . . . . . . 1 . . . Overloaded Fab Kills . | . . . . . . . . . . . . . . . . . . . . . . . . . . . Hacking | -11 -10 -10 -10 -9 -8 -8 -7 -7 -7 -7 -7 -6 -6 -6 -6 -6 -6 -5 -5 -5 -5 -4 -4 -4 -4 -3 --------- Run | Scr Mat Min Exi Min Mat Sto Fac Low Low Zio Dee Pro Fac Ext Cet Arc Hub Fac Upp Upp War Pro Fac Was Fac Res Machines Accessed 78 | . 5 1 1 2 8 11 8 1 . . . . 6 9 . . 10 1 . . 5 . 3 . 3 4 Terminals 52 | . 4 . . 2 5 9 4 . . . . . 4 9 . . 9 1 . . . . . . 1 4 Fabricators 3 | . . . . . . . 1 . . . . . . . . . . . . . . . 2 . . . Repair Stations 6 | . . . . . 2 1 . . . . . . 1 . . . . . . . . . 1 . 1 . Recycling Units 1 | . 1 . . . . . . . . . . . . . . . . . . . . . . . . . Scanalyzers 3 | . . . . . 1 . 1 . . . . . 1 . . . . . . . . . . . . . Garrison Access 5 | . . . . . . 1 2 . . . . . . . . . 1 . . . . . . . 1 . Total Hacks 227 | . 19 1 1 7 28 39 16 1 . . . . 17 15 . . 28 9 . . 11 . 8 . 13 14 Successful 117 | . 11 1 1 3 16 25 9 1 . . . . 8 6 . . 10 5 . . 11 . 5 . 2 3 Failed 109 | . 8 . . 4 11 14 7 . . . . . 9 9 . . 18 4 . . . . 3 . 11 11 Catastrophic 21 | . 2 . . . 1 1 1 . . . . . 1 4 . . 4 . . . . . . . 4 3 Database Lockouts 1 | . . . . . 1 . . . . . . . . . . . . . . . . . . . . . Manual 118 | . 20 . . 9 15 16 5 . . 1 . . 6 5 1 . 18 8 . . 1 . . . 2 11 Terminals 166 | . 18 . . 7 19 35 8 . . . . . 11 15 . . 26 9 . . . . . . 4 14 Fabricators 5 | . . . . . . . 1 . . . . . . . . . . . . . . . 4 . . . Repair Stations 25 | . . . . . 8 2 . . . . . . 4 . . . . . . . . . 4 . 7 . Recycling Units 1 | . 1 . . . . . . . . . . . . . . . . . . . . . . . . . Scanalyzers 7 | . . . . . 1 . 4 . . . . . 2 . . . . . . . . . . . . . Garrison Access 9 | . . . . . . 2 3 . . . . . . . . . 2 . . . . . . . 2 . Terminal Hacks 67 | . 7 1 1 3 7 17 2 1 . . . . 2 3 . . 7 4 . . 11 . . . . 1 Record 4 | . . . 1 . . . . . . . . . . . . . . . . . 3 . . . . . Part Schematic 2 | . . . . . . 2 . . . . . . . . . . . . . . . . . . . . Robot Analysis 9 | . 2 . . 3 2 1 1 . . . . . . . . . . . . . . . . . . . Prototype ID Bank 19 | . 4 . . . 2 5 . . . . . . . 1 . . . 1 . . 6 . . . . . Open Door 9 | . . 1 . . . 3 . 1 . . . . . 2 . . . . . . 2 . . . . . Branch Access Points 3 | . . . . . . . 1 . . . . . 1 . . . . 1 . . . . . . . . Emergency Access Points 1 | . . . . . . . . . . . . . . . . . 1 . . . . . . . . . Terminal Index 3 | . . . . . 1 . . . . . . . 1 . . . 1 . . . . . . . . . Alert Level 2 | . . . . . 1 . . . . . . . . . . . 1 . . . . . . . . . Unreport Threat 7 | . . . . . . 2 . . . . . . . . . . 3 2 . . . . . . . . Locate Traps 2 | . . . . . . 2 . . . . . . . . . . . . . . . . . . . . Zone Layout 6 | . 1 . . . 1 2 . . . . . . . . . . 1 . . . . . . . . 1 Fabricator Hacks 4 | . . . . . . . 1 . . . . . . . . . . . . . . . 3 . . . Network Status 1 | . . . . . . . . . . . . . . . . . . . . . . . 1 . . . Load Schematic 1 | . . . . . . . . . . . . . . . . . . . . . . . 1 . . . Build 2 | . . . . . . . 1 . . . . . . . . . . . . . . . 1 . . . Repair Station Hacks 13 | . . . . . 6 2 . . . . . . 1 . . . . . . . . . 2 . 2 . Scan Component 7 | . . . . . 3 1 . . . . . . 1 . . . . . . . . . 1 . 1 . Repair 6 | . . . . . 3 1 . . . . . . . . . . . . . . . . 1 . 1 . Recycling Unit Hacks . | . . . . . . . . . . . . . . . . . . . . . . . . . . . Scanalyzer 7 | . . . . . 1 . 4 . . . . . 2 . . . . . . . . . . . . . Insert Component 3 | . . . . . 1 . 1 . . . . . 1 . . . . . . . . . . . . . Analyze 4 | . . . . . . . 3 . . . . . 1 . . . . . . . . . . . . . Garrison Access Hacks 1 | . . . . . . . 1 . . . . . . . . . . . . . . . . . . . Seal Access 1 | . . . . . . . 1 . . . . . . . . . . . . . . . . . . . Unauthorized Hacks 25 | . 4 . . . 2 6 1 . . . . . 3 3 . . 3 1 . . . . . . . 2 Terminals 21 | . 3 . . . 2 5 . . . . . . 3 3 . . 2 1 . . . . . . . 2 Track 5 | . 1 . . . . 2 . . . . . . . . . . 2 . . . . . . . . . Assimilate 1 | . . . . . . . . . . . . . 1 . . . . . . . . . . . . . Botnet 14 | . 2 . . . 2 3 . . . . . . 1 3 . . . 1 . . . . . . . 2 Operators 1 | . . . . . . . . . . . . . 1 . . . . . . . . . . . . . Fabricators . | . . . . . . . . . . . . . . . . . . . . . . . . . . . Repair Stations . | . . . . . . . . . . . . . . . . . . . . . . . . . . . Recycling Units 1 | . 1 . . . . . . . . . . . . . . . . . . . . . . . . . Tunnel 1 | . 1 . . . . . . . . . . . . . . . . . . . . . . . . . Scanalyzers . | . . . . . . . . . . . . . . . . . . . . . . . . . . . Garrison Access 3 | . . . . . . 1 1 . . . . . . . . . 1 . . . . . . . . . Jam 3 | . . . . . . 1 1 . . . . . . . . . 1 . . . . . . . . . Data Cores Recovered 5 | . . . . . . 3 . . . . . . . . . . 1 . . . . . . . . 1 Used . | . . . . . . . . . . . . . . . . . . . . . . . . . . . Hacking Detections 58 | . 4 . . 2 7 8 4 . . . . . 6 8 . . 9 1 . . . . 2 . 3 4 Full Trace Events 8 | . 1 . . . 2 1 1 . . . . . . 1 . . . . . . . . 1 . . 1 Feedback Events 1 | . 1 . . . . . . . . . . . . . . . . . . . . . . . . . Corruption 1 | . 1 . . . . . . . . . . . . . . . . . . . . . . . . . Feedback Blocked . | . . . . . . . . . . . . . . . . . . . . . . . . . . . Robot Schematics Acquired 4 | . . . . . . . . . . 4 . . . . . . . . . . . . . . . . Robots Built 3 | . . . . . . . 3 . . . . . . . . . . . . . . . . . . . Authchips . | . . . . . . . . . . . . . . . . . . . . . . . . . . . Time 49 | . . . . . . . 49 . . . . . . . . . . . . . . . . . . . Total Robot Build Rating 6 | . . . . . . . 6 . . . . . . . . . . . . . . . . . . . Part Schematics Acquired 18 | . . . . . . 2 1 . . 14 . . 1 . . . . . . . . . . . . . Parts Built 1 | . . . . . . . . . . . . . . . . . . . . . . . 1 . . . Authchips . | . . . . . . . . . . . . . . . . . . . . . . . . . . . Time 84 | . . . . . . . . . . . . . . . . . . . . . . . 84 . . . Total Part Build Rating 4 | . . . . . . . . . . . . . . . . . . . . . . . 4 . . . Parts Repaired 6 | . . . . . 3 1 . . . . . . . . . . . . . . . . 1 . 1 . Time 175 | . . . . . 102 32 . . . . . . . . . . . . . . . . 13 . 28 . Parts Recycled . | . . . . . . . . . . . . . . . . . . . . . . . . . . . Recycled Matter . | . . . . . . . . . . . . . . . . . . . . . . . . . . . Retrieved Matter . | . . . . . . . . . . . . . . . . . . . . . . . . . . . Retrieved Components . | . . . . . . . . . . . . . . . . . . . . . . . . . . . Parts Scanalyzed 2 | . . . . . . . 1 . . . . . 1 . . . . . . . . . . . . . Part Schematics Acquired 2 | . . . . . . . 1 . . . . . 1 . . . . . . . . . . . . . Parts Damaged . | . . . . . . . . . . . . . . . . . . . . . . . . . . . Bothacking | -11 -10 -10 -10 -9 -8 -8 -7 -7 -7 -7 -7 -6 -6 -6 -6 -6 -6 -5 -5 -5 -5 -4 -4 -4 -4 -3 ------------ Run | Scr Mat Min Exi Min Mat Sto Fac Low Low Zio Dee Pro Fac Ext Cet Arc Hub Fac Upp Upp War Pro Fac Was Fac Res Used RIF Installer . | . . . . . . . . . . . . . . . . . . . . . . . . . . . Robots Hacked . | . . . . . . . . . . . . . . . . . . . . . . . . . . . Non-combat . | . . . . . . . . . . . . . . . . . . . . . . . . . . . Combat . | . . . . . . . . . . . . . . . . . . . . . . . . . . . Robot Hacks Applied . | . . . . . . . . . . . . . . . . . . . . . . . . . . . Relay Couplers Released . | . . . . . . . . . . . . . . . . . . . . . . . . . . . Fabnet Peak Effective % . | . . . . . . . . . . . . . . . . . . . . . . . . . . . Robots Rewired 8 | . . . . . . . . . . . . . . 8 . . . . . . . . . . . . Allies Hacked 1 | . . . . . . . . . . . . . . . . . . . . . . . . . 1 . Hacks Repelled . | . . . . . . . . . . . . . . . . . . . . . . . . . . . Allies | -11 -10 -10 -10 -9 -8 -8 -7 -7 -7 -7 -7 -6 -6 -6 -6 -6 -6 -5 -5 -5 -5 -4 -4 -4 -4 -3 -------- Run | Scr Mat Min Exi Min Mat Sto Fac Low Low Zio Dee Pro Fac Ext Cet Arc Hub Fac Upp Upp War Pro Fac Was Fac Res Total Allies 32 | . . . . . . . 6 . . 5 . . 1 13 5 . . . . . . . . . 2 . Largest Group 9 | . . . . . . . 6 5 . 5 5 . 1 9 7 7 5 . . . . . . . 2 . Highest-Rated Group 654 | . . . . . . . 123 113 . 258 258 . 10 256 654 654 475 . . . . . . . 92 . Highest-Rated Ally 159 | . . . . . . . 31 31 . 95 95 . 10 159 159 159 95 . . . . . . . 46 . Total Orders 2 | . . . . . . . . . . . . . 2 . . . . . . . . . . . . . STAY 1 | . . . . . . . . . . . . . 1 . . . . . . . . . . . . . FOLLOW 1 | . . . . . . . . . . . . . 1 . . . . . . . . . . . . . Ally Attacks 354 | . . . . . . . 1 15 1 . 44 . . 98 41 26 124 . . . . . . . 4 . Total Damage 9535 | . . . . . . . 21 294 60 . 768 . . 1741 1116 1054 4382 . . . . . . . 99 . Kills 54 | . . . . . . . . . 1 . 2 . . 12 12 3 24 . . . . . . . . . Allies Corrupted 1 | . . . . . . . . . . . . . . . . . . . . . . . . . 1 . Allies Melted 1 | . . . . . . . . 1 . . . . . . . . . . . . . . . . . . Intel | -11 -10 -10 -10 -9 -8 -8 -7 -7 -7 -7 -7 -6 -6 -6 -6 -6 -6 -5 -5 -5 -5 -4 -4 -4 -4 -3 ------- Run | Scr Mat Min Exi Min Mat Sto Fac Low Low Zio Dee Pro Fac Ext Cet Arc Hub Fac Upp Upp War Pro Fac Was Fac Res Robot Analysis Total 9 | . 2 . . 3 2 1 1 . . . . . . . . . . . . . . . . . . . Derelict Logs Recovered 11 | . . 2 . . . . . 3 2 1 . 1 . . . . . . 1 . . 1 . . . . Drone Launches . | . . . . . . . . . . . . . . . . . . . . . . . . . . . Drone Recoveries . | . . . . . . . . . . . . . . . . . . . . . . . . . . . Exploration | -11 -10 -10 -10 -9 -8 -8 -7 -7 -7 -7 -7 -6 -6 -6 -6 -6 -6 -5 -5 -5 -5 -4 -4 -4 -4 -3 ------------- Run | Scr Mat Min Exi Min Mat Sto Fac Low Low Zio Dee Pro Fac Ext Cet Arc Hub Fac Upp Upp War Pro Fac Was Fac Res Turns Passed 30211 | 88 985 399 201 188 1773 1440 1432 614 491 1789 1879 500 1897 1494 452 630 2505 1224 1287 687 1354 1181 1496 180 1552 2493 Spaces Moved 12828 | 48 552 253 135 124 712 674 730 357 296 1127 859 252 813 639 134 172 712 286 390 347 693 254 475 85 703 1006 Core 282 | 1 . . . . . . . . . 132 . . . . . . . . . . . . . . . 149 Treads 2495 | 47 31 . . . 150 . . . . . . . . . 101 172 670 29 . . . . 145 85 703 362 Legs 3482 | . . . . . . . . . . . . . 497 639 33 . 42 257 390 347 693 254 330 . . . Wheels 6569 | . 521 253 135 124 562 674 730 357 296 995 859 252 316 . . . . . . . . . . . . 495 Hover . | . . . . . . . . . . . . . . . . . . . . . . . . . . . Flight . | . . . . . . . . . . . . . . . . . . . . . . . . . . . Fastest Speed 50 | 50 95 150 150 150 150 150 165 165 165 50 165 165 180 183 183 240 240 183 185 185 175 175 160 160 160 50 Average Speed 178 | 157 142 150 150 150 175 153 165 165 165 150 175 166 199 183 229 240 241 204 185 187 184 175 204 160 172 186 Slowest Speed 320 | 160 160 150 150 150 240 165 180 165 165 165 180 180 270 183 240 240 270 270 185 190 190 175 240 160 249 320 Overloaded Moves . | . . . . . . . . . . . . . . . . . . . . . . . . . . . Propulsion Burnouts . | . . . . . . . . . . . . . . . . . . . . . . . . . . . Robots Hopped . | . . . . . . . . . . . . . . . . . . . . . . . . . . . Cave-ins Triggered . | . . . . . . . . . . . . . . . . . . . . . . . . . . . Exploration Rate (%) 53 | 4 77 50 53 26 59 80 31 51 57 86 59 46 22 84 58 96 70 14 61 57 87 54 19 87 28 34 Regions Visited 26 Branch Regions 17 Pre-discovered Areas 4 | . 1 1 1 . . . . . . 1 . . . . . . . . . . . . . . . . Known Exits Taken 8 | . . . . . 1 1 1 . 1 . . . 1 . . . 1 1 1 . . . . . . . Unknown Exits Taken 16 | 1 1 1 1 1 . . . 1 . 1 1 1 . 1 1 1 . . . 1 1 1 . . 1 . Scrap Searched 21 | . . 1 . 1 . . . 1 2 4 . 2 . . . . . . 5 3 . 2 . . . . Spaces Dug 108 | . . . . . 5 . 2 . . 4 . . 18 . . . 26 4 . . . . 8 6 16 19 Terrain Destroyed 1126 | . . . . . 67 . 11 11 . 4 13 25 37 16 2 10 582 90 3 2 4 16 52 7 57 117 Melee 22 | . . . . . . . 1 . . 4 . . 10 . . . . 1 . . . . . . 2 4 Projectile 328 | . . . . . 35 . 1 . . . 3 5 27 16 2 10 66 20 3 2 4 . 52 7 40 35 AOE 776 | . . . . . 32 . 9 11 . . 10 20 . . . . 516 69 . . . 16 . . 15 78 Terrain Rammed . | . . . . . . . . . . . . . . . . . . . . . . . . . . . Walls Destroyed . | . . . . . . . . . . . . . . . . . . . . . . . . . . . Machines Disabled . | . . . . . . . . . . . . . . . . . . . . . . . . . . . Actions | -11 -10 -10 -10 -9 -8 -8 -7 -7 -7 -7 -7 -6 -6 -6 -6 -6 -6 -5 -5 -5 -5 -4 -4 -4 -4 -3 --------- Run | Scr Mat Min Exi Min Mat Sto Fac Low Low Zio Dee Pro Fac Ext Cet Arc Hub Fac Upp Upp War Pro Fac Was Fac Res Total 17999 | 57 665 269 134 124 1053 923 864 372 297 1195 1063 295 1000 889 256 335 1221 759 938 364 749 990 795 105 914 1373 Wait 2879 | . 36 5 . . 148 110 14 . . 11 30 9 77 15 85 134 313 334 523 1 19 729 110 4 78 94 Move 12803 | 47 551 252 134 123 711 673 729 356 295 1126 858 251 812 638 133 171 711 285 389 346 692 253 475 84 702 1006 Hop . | . . . . . . . . . . . . . . . . . . . . . . . . . . . Pick Up 168 | 4 18 5 . . 16 8 12 1 . 20 7 . 10 2 2 . 4 12 5 1 2 . 22 . 9 8 Fast Attach 182 | 6 1 . . . 20 15 16 . . 7 16 2 3 . 4 3 8 4 . 1 10 . 22 2 10 32 Attach 92 | . . . . . 14 2 6 . . 2 3 4 4 1 2 . 5 10 1 1 1 . 10 . 4 22 Detach 124 | . . . . . 7 6 3 . . . 2 1 15 1 7 1 10 7 4 1 2 4 23 1 9 20 Swap 149 | . 6 . . . 20 10 16 3 . 1 19 8 6 . 3 . 5 8 . 2 2 2 6 1 17 14 Drop 236 | . 9 4 . . 28 22 21 2 . 12 25 . 14 2 5 1 8 4 5 2 12 . 13 2 14 31 Fire 1020 | . 44 3 . 1 89 77 41 10 2 . 45 20 46 37 15 25 144 94 11 9 9 2 106 11 64 115 Melee 133 | . . . . . . . 6 . . 16 58 . 13 . . . . 1 . . . . 7 . 3 29 Ram 2 | . . . . . . . . . . . . . . . . . . . . . . . . . . 2 Kick 3 | . . . . . . . . . . . . . . 1 . . 1 . . . . . 1 . . . Crush 16 | . . . . . . . . . . . . . . . . . 12 . . . . . . . 4 . Escape Stasis 48 | . . . . . . . . . . . . . . 48 . . . . . . . . . . . . Rewire 144 | . . . . . . . . . . . . . . 144 . . . . . . . . . . . . Trap . | . . . . . . . . . . . . . . . . . . . . . . . . . . . Miscellaneous . | . . . . . . . . . . . . . . . . . . . . . . . . . . . Route ------- -11/Scrapyard -10/Materials (discovered 3 exits: [*Mat x2] / *Min) -10/Mines -10/Exiles -9/Mines -8/Materials (discovered 3 exits: *Fac x2 / *Sto) -8/Storage -7/Factory (discovered 3 exits: *Fac / *Low x2) -7/Lower Caves -7/Lower Caves -7/Zion (discovered 2 exits: [*Dee] / [*Pro]) -7/Deep Caves -6/Proximity Caves -6/Factory (discovered 5 exits: *Fac / Low x2 / *Ext x2) -6/Extension (discovered 3 exits: *Fac x2 / *Cet) -6/Cetus -6/Archives (discovered 3 exits: *Fac / *Hub x2) -6/Hub_04(d) (discovered 3 exits: *Fac x3) -5/Factory (discovered 3 exits: *Fac / *Upp x2) -5/Upper Caves -5/Upper Caves (discovered 2 exits: *Fac / *War) -5/Warlord -4/Proximity Caves -4/Factory -4/Waste -4/Factory -3/Research History --------- Turn | Location | Event 39 | -11/Scrapyard | Discovered new exit (range 16) 89 | -11/Scrapyard | Entered Materials 233 | -10/Materials | Discovered new exit (range 8) 312 | -10/Materials | Build established: Mutant 352 | -10/Materials | Discovered new exit (range 10) 536 | -10/Materials | Core integrity fell below 50% 904 | -10/Materials | Discovered new exit (range 11) 1074 | -10/Materials | Entered Mines 1078 | -10/Mines | Met a Derelict shopkeep closing up shop 1221 | -10/Mines | Learned location of 1 exit from Materials 1257 | -10/Mines | Found a damaged Exp. Sensor Array with a note attached 1264 | -10/Mines | Found Prototype Device 1466 | -10/Mines | Deemed a non-threat by the Exiles lab entrance 1467 | -10/Mines | Discovered new exit (range 5) 1473 | -10/Mines | Entered Exiles 1511 | -10/Exiles | Met 8R-AWN 1535 | -10/Exiles | Met EX-HEX 1590 | -10/Exiles | Met EX-DEC 1616 | -10/Exiles | Learned location of Zion (-7) 1659 | -10/Exiles | Discovered new exit (range 12) 1674 | -10/Exiles | Entered Mines 1700 | -9/Mines | Discovered new exit (range 9) 1862 | -9/Mines | Entered Materials 1862 | -8/Materials | Evolved 4 slots: Propulsion x1, Utility x2, Weapon x1 1863 | -8/Materials | Identified exit to Storage 1864 | -8/Materials | Identified exit to Factory 2160 | -8/Materials | Build established: Tank 2419 | -8/Materials | Repaired Imp. Treads 2453 | -8/Materials | Repaired Imp. Treads 2492 | -8/Materials | Repaired Imp. Light Armor Plating 2975 | -8/Materials | Identified Exp. Sensor Array 3040 | -8/Materials | Central database locked down 3179 | -8/Materials | Discovered exit to Factory (range 8) 3462 | -8/Materials | First assault squad dispatched 3576 | -8/Materials | Build established: Gunner 3635 | -8/Materials | Entered Storage 3823 | -8/Storage | Found Prototype Processor 4733 | -8/Storage | Repaired Arm. Wheel 4835 | -8/Storage | First assault squad dispatched 4928 | -8/Storage | Lost 3 parts (1p2u) 4960 | -8/Storage | Discovered exit to Factory (range 16) 5075 | -8/Storage | Entered Factory 5075 | -7/Factory | Evolved 2 slots: Utility x2 5075 | -7/Factory | Identified Exp. Targeting Computer 5553 | -7/Factory | Lost 3 parts (1n2u) 5912 | -7/Factory | Discovered new exit (range 9) 5934 | -7/Factory | Identified exit to Lower Caves 5951 | -7/Factory | Fabricated B-36 Bruiser? 6163 | -7/Factory | Build established: Mutant 6380 | -7/Factory | Allied Derelicts emerged from ambush trap array 6478 | -7/Factory | Build established: Gunner 6507 | -7/Factory | Entered Lower Caves 6507 | -7/Lower Caves | Accompanied by 5 allies 6814 | -7/Lower Caves | Spotted B-75 Beast 6843 | -7/Lower Caves | Destroyed B-75 Beast 6878 | -7/Lower Caves | Learned Factory trap positions 6976 | -7/Lower Caves | Learned Factory trap positions 7106 | -7/Lower Caves | Discovered new exit (range 7) 7121 | -7/Lower Caves | Entered another Lower Caves area 7121 | -7/Lower Caves | Accompanied by 1 ally 7157 | -7/Lower Caves | Identified exit to Zion 7244 | -7/Lower Caves | Encountered a Warlord checkpoint 7612 | -7/Lower Caves | Entered Zion 7669 | -7/Zion | Found CR-A16's Pointy Stick 7725 | -7/Zion | Given the Hacking Drone Bay 7729 | -7/Zion | Discovered new exit (range 11) 8040 | -7/Zion | Learned location of 1 exit from Factory 8155 | -7/Zion | Received a visual enhancement algorithm 8195 | -7/Zion | Given A8's code to call for help 8220 | -7/Zion | Build established: Mutant 8689 | -7/Zion | Gained Derelict followers 9157 | -7/Zion | Discovered new exit (range 3) 9376 | -7/Zion | Enhanced Grunt warped into view, answering call for help 9377 | -7/Zion | Enhanced Grunt warped into view, answering call for help 9395 | -7/Zion | Saw the warning signs outside the Deep Caves entrance 9401 | -7/Zion | Entered Deep Caves 9401 | -7/Deep Caves | Accompanied by 5 allies 9522 | -7/Deep Caves | Attacked by Z-Imprinter 9542 | -7/Deep Caves | Destroyed Z-Imprinter 9727 | -7/Deep Caves | Z-Facility disabled 9772 | -7/Deep Caves | Found Prototype Protection 9772 | -7/Deep Caves | Identified Zio. Weapon Casing 9826 | -7/Deep Caves | Found Prototype Protection 9826 | -7/Deep Caves | Identified Zio. Heavy Carapace 9995 | -7/Deep Caves | Discovered new exit (range 7) 10108 | -7/Deep Caves | Spotted as-01366 10138 | -7/Deep Caves | Destroyed as-01366 10172 | -7/Deep Caves | Build established: Tank 10340 | -7/Deep Caves | Found Zio. Heavy Carapace 10353 | -7/Deep Caves | Found Zio. Heavy Carapace 10570 | -7/Deep Caves | Triggered Deep Caves wall 10571 | -7/Deep Caves | Exposed GOLEM chamber 10587 | -7/Deep Caves | Spotted AS-82599 10588 | -7/Deep Caves | Spotted AS-78355 10606 | -7/Deep Caves | Destroyed AS-82599 10612 | -7/Deep Caves | Destroyed AS-78355 10623 | -7/Deep Caves | Destroyed 37 combat bots 10837 | -7/Deep Caves | Found Unknown Device 10844 | -7/Deep Caves | Found Unknown Device 10939 | -7/Deep Caves | Build established: Mutant 11036 | -7/Deep Caves | Found Zio. Weapon Casing 11280 | -7/Deep Caves | Entered Proximity Caves 11393 | -6/Proximity Caves | Spotted B-75 Beast 11666 | -6/Proximity Caves | Attracted the attention of an 0b10 checkpoint 11693 | -6/Proximity Caves | Core integrity fell below 50% 11720 | -6/Proximity Caves | Destroyed 10 combat bots 11727 | -6/Proximity Caves | Lost 4 parts (2n2u) 11764 | -6/Proximity Caves | Discovered new exit (range 7) 11768 | -6/Proximity Caves | Learned Factory security intel 11780 | -6/Proximity Caves | Entered Factory 11780 | -6/Factory | Evolved 2 slots: Power x1, Utility x1 11781 | -6/Factory | Identified exit to Lower Caves 11782 | -6/Factory | Identified exit to Factory 11782 | -6/Factory | Identified GOLEM Unit (x2) 11783 | -6/Factory | Loaded intel: 93 trap records 12049 | -6/Factory | Identified exit to Extension 12286 | -6/Factory | Build established: Golem 12728 | -6/Factory | Lost 4 parts (2u2w) 13677 | -6/Factory | Entered Extension 14040 | -6/Extension | Rescued a captive Derelict 14064 | -6/Extension | Rescued a captive Derelict 14064 | -6/Extension | Rescued a captive Derelict 14118 | -6/Extension | Build established: Commander-Gunner 14591 | -6/Extension | Spotted B-75 Beast 14597 | -6/Extension | Destroyed B-75 Beast 14611 | -6/Extension | Spotted B-75 Beast 14617 | -6/Extension | Destroyed B-75 Beast 14673 | -6/Extension | Discovered exit to Factory (range 10) 14884 | -6/Extension | Rescued A7 14953 | -6/Extension | Energy Cycler disabled 14954 | -6/Extension | Rescued a captive Derelict 14954 | -6/Extension | Rescued a captive Derelict 14954 | -6/Extension | Rescued a captive Derelict 15077 | -6/Extension | Build established: Golem 15132 | -6/Extension | Discovered new exit (range 13) 15140 | -6/Extension | Discovered exit to Factory (range 10) 15171 | -6/Extension | Entered Cetus 15171 | -6/Cetus | Accompanied by 2 allies (A7) 15176 | -6/Cetus | Acquired a Cetus Manufacturing Module code from A7 15198 | -6/Cetus | Spotted Cetus Guard 15198 | -6/Cetus | Spotted Cetus Guard 15204 | -6/Cetus | Spotted Cetus Guard 15204 | -6/Cetus | Spotted Cetus Guard 15207 | -6/Cetus | Allies destroyed Cetus Guard 15216 | -6/Cetus | Destroyed Cetus Guard 15217 | -6/Cetus | Destroyed Cetus Guard 15218 | -6/Cetus | Destroyed Cetus Guard 15259 | -6/Cetus | System corruption reached 10% 15394 | -6/Cetus | Started Cetus Manufacturing Module 15415 | -6/Cetus | Escorted A7 to Cetus Mainframe 15419 | -6/Cetus | Manufactured an Enhanced Grunt 15444 | -6/Cetus | Manufactured an Enhanced Grunt 15469 | -6/Cetus | Manufactured an Enhanced Grunt 15494 | -6/Cetus | Manufactured an Enhanced Grunt 15519 | -6/Cetus | Manufactured an Enhanced Grunt 15546 | -6/Cetus | Cetus Manufacturing Module disabled 15576 | -6/Cetus | Discovered new exit (range 16) 15623 | -6/Cetus | Entered Archives 15623 | -6/Archives | Accompanied by 7 allies (A7) 15628 | -6/Archives | Received a hacking code to weaken MAIN.C 15714 | -6/Archives | Discovered exit to Factory (range 15) 15928 | -6/Archives | Discovered new exit (range 16) 16099 | -6/Archives | Discovered new exit (range 16) 16253 | -6/Archives | Entered Hub_04(d) 16253 | -6/Hub_04(d) | Accompanied by 5 allies 16825 | -6/Hub_04(d) | Discovered exit to Factory (range 15) 16836 | -6/Hub_04(d) | Discovered exit to Factory (range 11) 16847 | -6/Hub_04(d) | Found Prototype Device 16847 | -6/Hub_04(d) | Identified Exp. Thermal Shield 16969 | -6/Hub_04(d) | Build established: Commander-Tank 17303 | -6/Hub_04(d) | First assault squad dispatched 17676 | -6/Hub_04(d) | Discovered exit to Factory (range 15) 17702 | -6/Hub_04(d) | Build established: Golem 18045 | -6/Hub_04(d) | Build established: Tank 18223 | -6/Hub_04(d) | Network Hub disabled 18299 | -6/Hub_04(d) | Spotted Lightning 18299 | -6/Hub_04(d) | Spotted Lightning 18306 | -6/Hub_04(d) | Spotted Lightning 18362 | -6/Hub_04(d) | Destroyed Lightning 18372 | -6/Hub_04(d) | Core integrity fell below 50% 18393 | -6/Hub_04(d) | Build established: Golem 18395 | -6/Hub_04(d) | Lost 4 parts (1p2u1w) 18398 | -6/Hub_04(d) | Found Prototype Device 18398 | -6/Hub_04(d) | Identified Exp. Phase Shifter 18416 | -6/Hub_04(d) | Destroyed Lightning 18421 | -6/Hub_04(d) | Found Prototype Device 18421 | -6/Hub_04(d) | Identified EM Dispersion Field 18433 | -6/Hub_04(d) | Found Prototype Energy Cannon 18446 | -6/Hub_04(d) | Found Exp. Targeting Computer 18514 | -6/Hub_04(d) | Network Hub disabled 18634 | -6/Hub_04(d) | Spotted Lightning 18636 | -6/Hub_04(d) | Spotted Lightning 18637 | -6/Hub_04(d) | Spotted Lightning 18663 | -6/Hub_04(d) | Destroyed Lightning 18671 | -6/Hub_04(d) | Destroyed Lightning 18673 | -6/Hub_04(d) | Destroyed Lightning 18738 | -6/Hub_04(d) | Network Hub disabled 18758 | -6/Hub_04(d) | Entered Factory 18758 | -5/Factory | Evolved 2 slots: Propulsion x1, Utility x1 18759 | -5/Factory | Identified exit to Upper Caves 18760 | -5/Factory | Loaded intel: 87 trap records 19046 | -5/Factory | Build established: Scavenger-Golem 19058 | -5/Factory | First assault squad dispatched 19507 | -5/Factory | Discovered new exit (range 7) 19533 | -5/Factory | Garrison activated, responded to threat 19629 | -5/Factory | Lost 6 parts (1n2u3w) 19972 | -5/Factory | Found Prototype Launcher 19982 | -5/Factory | Entered Upper Caves 20270 | -5/Upper Caves | Build established: Golem 20771 | -5/Upper Caves | Attracted the attention of an 0b10 checkpoint 20804 | -5/Upper Caves | Identified exit to Upper Caves 20861 | -5/Upper Caves | Encountered a Warlord checkpoint 21269 | -5/Upper Caves | Entered another Upper Caves area 21325 | -5/Upper Caves | Discovered new exit (range 13) 21414 | -5/Upper Caves | Spotted B-75 Beast 21596 | -5/Upper Caves | Attracted the attention of an 0b10 checkpoint 21925 | -5/Upper Caves | Discovered new exit (range 15) 21956 | -5/Upper Caves | Entered Warlord 22021 | -5/Warlord | System corruption cleaned by Quarantine Array 22232 | -5/Warlord | Identified Mni. Smartbomb Launcher 22459 | -5/Warlord | Received a Watcher feed algorithm from an ecstatic Tinkerer 22552 | -5/Warlord | Learned Testing emergency access door positions 22554 | -5/Warlord | Learned 4 Armory zone layouts 22801 | -5/Warlord | Met Warlord 22826 | -5/Warlord | Warlord's base attacked by MAIN.C 22832 | -5/Warlord | Found Prototype Reactor 22857 | -5/Warlord | Found Prototype Device 22857 | -5/Warlord | Identified System Purifier 22861 | -5/Warlord | Found Prototype Processor 22861 | -5/Warlord | Identified Exp. Core Analyzer 23043 | -5/Warlord | Found Prototype Energy Gun 23043 | -5/Warlord | Identified Vortex Rifle 23052 | -5/Warlord | Found Prototype Energy Gun 23052 | -5/Warlord | Identified Vortex Rail 23176 | -5/Warlord | Warlord forces counterattacked 23239 | -5/Warlord | Opened side exit 23270 | -5/Warlord | Spotted Executioner 23274 | -5/Warlord | Destroyed Executioner 23296 | -5/Warlord | Discovered new exit (range 11) 23310 | -5/Warlord | Entered Proximity Caves 24124 | -4/Proximity Caves | Spotted B-86 Titan 24303 | -4/Proximity Caves | Discovered new exit (range 13) 24469 | -4/Proximity Caves | Received a Behemoth hack from an annoying Tinkerer 24491 | -4/Proximity Caves | Entered Factory 24491 | -4/Factory | Evolved 2 slots: Utility x2 24968 | -4/Factory | Repaired Hcp. Storage Unit 24973 | -4/Factory | Garrison activated, responded to threat 25162 | -4/Factory | Spotted B-86 Titan 25188 | -4/Factory | Revealed the true nature of CR-A16's Pointy Stick 25191 | -4/Factory | Destroyed B-86 Titan 25338 | -4/Factory | Lost 4 parts (3u1w) 25365 | -4/Factory | Cargo convoy interrupted 25503 | -4/Factory | Lost 3 parts (1u2w) 25533 | -4/Factory | First assault squad dispatched 25650 | -4/Factory | Found Prototype Processor 25650 | -4/Factory | Identified Spectral Analyzer 25663 | -4/Factory | Found Spectral Analyzer 25683 | -4/Factory | Identified Vortex Chain Reactor 25732 | -4/Factory | Lost 4 parts (1p1n2u) 25750 | -4/Factory | Destroyed 7 combat bots 25778 | -4/Factory | System corruption reached 10% 25905 | -4/Factory | Fabricated Imp. Medium Armor Plating (x1) 25987 | -4/Factory | Sucked down chute 25987 | -4/Factory | Entered Waste 25987 | -4/Waste | Met up with 3 allies sucked down the chute earlier 26002 | -4/Waste | EMP discharged 26026 | -4/Waste | Spotted C-40 Crusher 26032 | -4/Waste | Spotted C-40 Crusher 26041 | -4/Waste | Destroyed C-40 Crusher 26051 | -4/Waste | Spotted C-40 Crusher 26078 | -4/Waste | Spotted C-40 Crusher 26102 | -4/Waste | EMP discharged 26107 | -4/Waste | Spotted C-40 Crusher 26131 | -4/Waste | Spotted C-40 Crusher 26148 | -4/Waste | Discovered new exit (range 13) 26167 | -4/Waste | Entered Factory 26245 | -4/Factory | Repaired Adv. Shield Generator 26351 | -4/Factory | Build established: Gunner 26586 | -4/Factory | Spotted B-86 Titan 26639 | -4/Factory | Destroyed B-86 Titan 27091 | -4/Factory | Found Prototype Processor 27091 | -4/Factory | Identified Exp. Melee Analysis Suite 27473 | -4/Factory | Allied Derelicts emerged from ambush trap array 27508 | -4/Factory | Discovered new exit (range 8) 27667 | -4/Factory | First assault squad dispatched 27719 | -4/Factory | Entered Research 27719 | -3/Research | Evolved 2 slots: Power x1, Utility x1 28220 | -3/Research | Build established: Generator-Mutant 28469 | -3/Research | First assault squad dispatched 28637 | -3/Research | Destroyed 7 combat bots 28693 | -3/Research | Spotted B-86 Titan 28735 | -3/Research | Destroyed B-86 Titan 28945 | -3/Research | Found Prototype Processor 28945 | -3/Research | Identified Exp. Signal Interpreter 29708 | -3/Research | Destroyed 9 combat bots 29846 | -3/Research | Destroyed 11 combat bots 29862 | -3/Research | Identified EMDS 29875 | -3/Research | Lost 8 parts (2p1n3u2w) 29912 | -3/Research | System corruption reached 10% 29952 | -3/Research | Lost 4 parts (1p2n1w) 30085 | -3/Research | Core integrity fell below 50% 30105 | -3/Research | Core integrity fell below 20% 30129 | -3/Research | Lost 5 parts (1n4u) 30143 | -3/Research | Found Prototype Device 30143 | -3/Research | Identified Exp. Shield Generator 30167 | -3/Research | Found Spectral Analyzer 30203 | -3/Research | Build established: Mutant 30212 | -3/Research | Destroyed by S-43 Plague with Heavy Machine Gun Last Messages --------------- 30143_ Identified Exp. Shield Generator. 30144_ Dropped Exp. Shield Generator. 30145_ Acquired Impulse Thruster. 30151_ System corrupted: Energy discharge (-24). 30152_ Connecting with Terminal... 30154_ R-10 Processor collects Exp. Shield Generator. 30163_ Acquired Unknown Processor. 30163_ Identified Imp. Targeting Computer. 30167_ Acquired Spectral Analyzer. 30169_ System corrupted: Energy discharge (-24). 30183_ Sneak attack on R-10 Processor. 30183_ R-10 Processor suffers critical hit (Puncture). 30183_ Destroyed Com. Wheel. 30183_ R-10 Processor destroyed. 30184_ System corrupted: Matter fused (-8). 30185_ Acquired 58 matter. 30192_ W-44 Eye sends out distress signal. 30200_ System corrupted: Energy discharge (-17). 30205_ Impulse Thruster destroyed. 30208_ Med. Treads destroyed. Map ----- +----------------------------------------------------+ | ???????????????????????????????? #??# # | | ???????????????????????????????# #??######## | | ???????????????????????????????# #??# | | ?????????????????????????????### #### | | ?????????????????????????????? | | ??????????????????????????????# | | ??????????????????????????????# ! | | ???????????????????############ "" | | ???????????????????# """"" ## """ "" ! | | ???????????????????# ""R"" # """ T" | | ???????????????????# " " # """ "" | | ???????????????????# # """ "" | | ???????????????????# + """ #### | | ???????????????????# # """ #??? | | ???????????????????# # #??? | | ???????????????????# # #??? | | ???????????????????#######+### #??? | | ?????????????????######?# #??? | | ?????????????????# ?# u +??? | | ?????????????????# # ### #??? | | ?????????????????# # #?######## #??? | | ?????????????????# + #????????# #??? | | ?????????????????# # #????????# #??? | | ?????????????????######## #???????? #??? | | ????????????????????????#R##??????? ?? | | ????????????????????????#@#???????? ? | | ????????????????????????# #????????? + | | ????????????????????????# #????????###### # | | ????????????????????????#s#??????????????#### ?? | | ??????????????????????###/###????????????????????? | | ??????????????????????# R #????????????????????? | | ??????????????????????# R #????????????????????? | | ??????????????????????# #????????????????????? | | ??????????????????????# #????????????????????? | | ??????????????????????# s #????????????????????? | | ??????????????????????# #????????????????????? | | ??????????????????????# #????????????????????? | | ??????????????????????# #????????????????????? | | ??????????????????????# #????????????????????? | | ??????????????????????# #????????????????????? | | ??????????????????????# #????????????????????? | | ??????????????????????# #????????????????????? | | ??????????????????????###+###????????????????????? | | ??????????????????????? ?????????????????????? | | ????????????????????? #????????????????????? | | ????????????????????## ### #????????????????????? | | ?????????????????????# ??? #????????????????????? | | ?????????????????????#???? #????????????????????? | | ?????????????????????????? ????????????????????? | | ?????????????????????????? ????????????????????? | +----------------------------------------------------+ Best States ------------- Heat Dissipation 88 Coolant Potential 50 Energy Generation 73 Energy Capacity 1780 Matter Stores 300 Matter Capacity 300 Sight Range 24 Terrain Scan Range 20 Terrain Scan Density 10 Jamming Range 12 Power Amplification 20 Additional Mass Support 9 Armor Coverage 1200 Resistance: TH 30 Resistance: EM 75 Propulsion Shielding 33 Weapon Shielding 100 Phase Shifting 20 Evasion (%) 60 Targeting Accuracy 24 Core Analysis 15 Recoil Reduction 4 Energy Filtering 50 Particle Charging 25 Kinecelleration 30 Item Schematics ----------------- Magnetic Acceleration Cannon | -8/Storage | Hacked Arm. Huge Wheel | -8/Storage | Hacked Arm. Wheel | -7/Factory | Scanalyzed Gatling Laser | -7/Zion | Archive Beamcaster | -7/Zion | Archive Xenon Bombardment Thruster | -7/Zion | Archive Hyp. Gauss Rifle | -7/Zion | Archive Great Axe | -7/Zion | Archive Mapping Drone Bay | -7/Zion | Archive Imp. Kinecellerator | -7/Zion | Archive Lightning Gun | -7/Zion | Archive Mak. Terrain Scan Processor | -7/Zion | Archive Power Amplifier | -7/Zion | Archive Imp. Deuterium Engine | -7/Zion | Archive Nuclear Pulse Thruster | -7/Zion | Archive Mak. Axe | -7/Zion | Archive Angular Momentum Engine | -7/Zion | Archive Imp. Medium Armor Plating | -6/Factory | Scanalyzed Robot Schematics ------------------ M-28 Smith | -7/Zion | Archive B-48 Gladiator | -7/Zion | Archive A-02 Transporter | -7/Zion | Archive L-61 Swordsman | -7/Zion | Archive Fabricated ------------ B-36 Bruiser | x3 | -7/Factory | Preloaded Imp. Medium Armor Plating | x1 | -4/Factory Alien Tech Used ----------------- None Achievements -------------- None Challenges ------------ None Game ------ Seed ThunderPortableBay Manual? 0 Play Time 05:16:05 Cumulative 290.1 hours Start 2022.01.09 @ 06:28:03 End 2022.01.09 @ 13:05:43 Sessions 3 Manual Loads 0 Difficulty Rogue Special Mode None Game No. 140 Rogue 140 Adventurer 0 Explorer 0 Win Type - Total 7 Types 5/0/2/0/0/0/0/0/0 Lore% 78 Gallery% 86 Achievement% 73 Wizard Run 0 Options --------- ASCII 0 Keyboard 1 Movement Numpad Keybinds 0 Fullscreen 2 Font 12/Terminus Map View 83x54 Tactical HUD 1 Map Filters NONE Filters NONE Steam 1 RUN: 290171a1-66f1-4301-84f5-d3f898ff4f25